Cogmind - Beta 14 *** ADVENTURER MODE // 2025.03.20 @ 20:33:21 // Winter2019/RPGLIKE Player: Gallgagger Result: Self-destructed Performance ------------- Evolutions (2) 1000 Regions Visited (6) 1200 Robots Destroyed (144) 720 Value Destroyed (4706) 4706 Prototype IDs (27) 540 Alien Tech Used (0) 0 Bonus (739) 739 TOTAL SCORE: 8905 Bonus ------- High Alert Combat Kills 817 Friendly Fire -78 Cogmind --------- Core Integrity 581/600 Matter 290/300 Energy 224/240 System Corruption 0% Temperature Cool (31) Movement Hovering (38) Location -8/Scraptown Parts ------- > --- POWER (2) -------- Light Nuclear Core Meta Core > --- PROPULSION (4+1) - Aerolev Unit Aerolev Unit Cooled Airjet Cooled Airjet > --- UTILITY (6+1) ---- Weight Redist. System Improved Signal Interpreter Improved Terrain Scanner Seismic Detector Makeshift Light Armor Plating Makeshift Light Armor Plating > --- WEAPON (2+1) ----- Autobeam Plasma Cannon > --- INVENTORY (3) ---- Subdweller Monowheel Subdweller Optics Ripper Peak State ------------ > --- POWER ------------ Light Nuclear Core Meta Core > --- PROPULSION ------- Aerolev Unit Aerolev Unit Cooled Airjet Cooled Airjet > --- UTILITY ---------- Weight Redist. System Improved Signal Interpreter Improved Terrain Scanner Seismic Detector Makeshift Light Armor Plating Makeshift Light Armor Plating > --- WEAPON ----------- Autobeam Ripper > --- INVENTORY -------- Subdweller Monowheel Subdweller Optics Subdweller Laser [Rating: 57] Favorites ----------- Power Light Nuclear Core Engine Ion Engine Power Core Light Nuclear Core Propulsion Hover Unit Wheel Wheel Hover Unit Hover Unit Utility Makeshift Light Armor Plating Device Weight Redist. System Processor Improved Targeting Computer Protection Makeshift Light Armor Plating Weapon Ripper Energy Gun Autobeam Energy Cannon Subdweller Beam Cannon Ballistic Gun Light Assault Rifle Slashing Weapon Ripper Piercing Weapon Makeshift Spear Build | -11 -10 -10 -8 -8 -8 -8 ------- Run | Yrd Mat Sub Mat Sto Rec Scr Slots Evolved 10 | 4 3 1 1 1 . . Power 1 | 1 . . . . . . Propulsion 3 | 1 1 . . 1 . . Utility 5 | 1 2 1 1 . . . Weapon 1 | 1 . . . . . . Parts Attached 59 | 6 16 20 8 8 . 1 Power 5 | 2 . 2 . 1 . . Engine 2 | 2 . . . . . . Core 3 | . . 2 . 1 . . Reactor . | . . . . . . . Propulsion 12 | 2 5 . 3 2 . . Treads . | . . . . . . . Leg . | . . . . . . . Wheel 2 | 2 . . . . . . Hover 10 | . 5 . 3 2 . . Flight . | . . . . . . . Utility 12 | . 6 3 3 . . . Device 5 | . 3 . 2 . . . Storage . | . . . . . . . Processor 4 | . 3 . 1 . . . Hackware . | . . . . . . . Protection 3 | . . 3 . . . . Artifact . | . . . . . . . Weapon 30 | 2 5 15 2 5 . 1 Energy Gun 11 | 1 3 3 2 2 . . Energy Cannon 3 | . . 1 . 1 . 1 Ballistic Gun 9 | 1 2 6 . . . . Ballistic Cannon . | . . . . . . . Launcher . | . . . . . . . Special Weapon . | . . . . . . . Impact Weapon . | . . . . . . . Slashing Weapon 3 | . . 1 . 2 . . Piercing Weapon 4 | . . 4 . . . . Special Melee Weapon . | . . . . . . . Unidentified Prototypes 5 | . . 1 1 3 . . Parts Lost . | . . . . . . . Power . | . . . . . . . Propulsion . | . . . . . . . Utility . | . . . . . . . Weapon . | . . . . . . . Highest Loss Streak . | . . . . . . . To Critical Strikes . | . . . . . . . Average Slot Usage (%) 84 | . 95 84 80 81 82 82 Engine 5 | . 23 2 . . . . Core 9 | . . 12 12 11 11 11 Hover 21 | . 22 22 19 19 23 23 Device 14 | . 7 14 14 17 17 17 Processor 9 | . 15 10 5 5 5 5 Protection 7 | . . 5 12 11 11 11 Energy Gun 8 | . 18 7 6 5 5 5 Energy Cannon 1 | . . 3 . . . 1 Ballistic Gun 1 | . 5 1 . . . . Slashing Weapon 3 | . . 2 6 5 5 3 Peak Build Rating 57 | 6 16 39 52 57 57 57 Average Rating 37 | 4 11 29 46 53 57 57 On Entrance 32 | . 6 15 38 52 57 57 Naked Turns . | . . . . . . . Heaviest Build 30 | 13 17 28 30 29 29 29 Greatest Support 43 | 20 29 29 35 43 43 43 Greatest Overweight (x) 1 | . 1 . 1 . . . Average Overweight (x) . | . . . . . . . Largest Inventory Capacity 3 | . 3 3 3 3 3 3 Average Capacity 2 | . . 3 3 3 3 3 Most Carried 3 | . 2 3 3 3 3 3 Average Carried 2 | . . 2 3 3 3 2 Final Capacity 3 | . 3 3 3 3 3 3 Final Carried 3 | . 2 3 3 3 3 3 Class Distribution -------------------- 37% | Scavenger-Mutant 25% | Commander-Scout 15% | Mutant 15% | Hacker-Scout 5% | Hacker-Mutant Dominant Class ---------------- Mutant | -10/Materials Scavenger-Mutant | -10/Subcaves Hacker-Mutant | -8/Materials Hacker-Scout | -8/Storage Commander-Scout | -8/Recycling Commander-Scout | -8/Scraptown Resources | -11 -10 -10 -8 -8 -8 -8 ----------- Run | Yrd Mat Sub Mat Sto Rec Scr Matter Collected 836 | 260 199 217 80 80 . . Remotely . | . . . . . . . Salvage Created 4847 | . 1242 1062 1489 979 75 . Parts 329 | . 103 70 88 64 4 . Haulers Intercepted 2 | . 2 . . . . . Recyclers Shooed 2 | . . . 2 . . . Parts Field Recycled . | . . . . . . . Retrieved Matter . | . . . . . . . Parts Self-Destructed 21 | . . 21 . . . . Prevented 2 | . . 2 . . . . Kills | -11 -10 -10 -8 -8 -8 -8 ------- Run | Yrd Mat Sub Mat Sto Rec Scr Combat Hostiles Destroyed 132 | . 39 24 39 27 3 . Melee 38 | . . 9 19 9 1 . Guns 83 | . 35 8 20 18 2 . Cannons 6 | . . 6 . . . . AOE 5 | . 4 1 . . . . Classes Destroyed 9 | . 5 3 1 . . . Worker 2 | . 1 . . 1 . . Hauler 2 | . 2 . . . . . Operator 3 | . . . 2 1 . . Turret 2 | . . 2 . . . . Watcher 10 | . 3 . 5 2 . . Swarmer 36 | . 12 6 10 8 . . Grunt 56 | . 27 3 19 7 . . Sentry 26 | . . 1 10 12 3 . Subdweller 14 | . . 14 . . . . Best Kill Streak 11 | . 11 3 10 6 2 . Combat Bots Only 11 | . 11 3 10 4 2 . Max Kills in Single Turn 2 | . 2 1 1 1 1 . Gunslinging 1 | . 1 . . . . . Exploded 2 | . 2 1 . . . . Melee 1 | . . 1 1 1 1 . Uniques/NPCs Destroyed 1 | . . . . . . 1 Triborg (-8/Scraptown) Combat | -11 -10 -10 -8 -8 -8 -8 -------- Run | Yrd Mat Sub Mat Sto Rec Scr Hostile Shots Fired 362 | . 97 107 78 72 8 . Missed 145 | . 38 49 31 25 2 . Damage Taken 2299 | . 548 680 500 507 64 . Core 1717 | . 445 540 326 371 35 . Absorbed by Shields . | . . . . . . . Redirected to Core 1292 | . 321 399 266 271 35 . Ignored by Resistances 668 | . 167 192 147 143 19 . Core Remaining (%) 94 | 100 . 88 . . . . Volleys Fired 137 | . 76 60 . . . 1 Largest 2 | . 2 2 . . . 1 Hottest 130 | . 90 130 . . . 80 Shots Fired 425 | . 151 94 110 61 7 2 Gun 387 | . 151 57 110 61 7 1 Cannon 38 | . . 37 . . . 1 Launcher . | . . . . . . . Special . | . . . . . . . Kinetic 56 | . 39 17 . . . . Thermal 217 | . . 37 110 61 7 2 Explosive . | . . . . . . . Electromagnetic 152 | . 112 40 . . . . Robot Hit Streak 34 | . 30 23 20 26 34 4 Robot Miss Streak 5 | . 2 2 5 2 1 . Penetration Max . | . . . . . . . Secondary Targets 4 | . 4 . . . . . Max Gunslinging Chain 1 | . 1 . . . . . Autonomous 179 | . . . 110 61 7 1 Shots Hit Robots 471 | . 114 96 155 92 12 2 Core Hits 316 | . 57 41 125 81 11 1 Critical Kills . | . . . . . . . Critical Parts Destroyed 1 | . 1 . . . . . Critical Strikes 17 | . 5 4 3 5 . . Destroy 1 | . 1 . . . . . Corrupt 5 | . 4 1 . . . . Sever 9 | . . 1 3 5 . . Impale 2 | . . 2 . . . . Melee Attacks 202 | . . 105 55 37 5 . Impact . | . . . . . . . Slashing 151 | . . 54 55 37 5 . Piercing 51 | . . 51 . . . . Sneak Attacks 5 | . . . 1 2 2 . Combat Hostiles 3 | . . . . 1 2 . Follow-up Attacks . | . . . . . . . Damage Inflicted 11230 | . 1800 2940 3654 2414 373 49 Guns 5005 | . 1524 641 1683 1011 123 23 Cannons 385 | . . 359 . . . 26 Explosions 356 | . 276 80 . . . . Melee 5484 | . . 1860 1971 1403 250 . Ramming . | . . . . . . . Kinetic 340 | . 247 93 . . . . Thermal 3581 | . 276 439 1683 1011 123 49 Explosive . | . . . . . . . Electromagnetic 1825 | . 1277 548 . . . . Impact . | . . . . . . . Slashing 5347 | . . 1723 1971 1403 250 . Piercing 137 | . . 137 . . . . Highest Corruption . | . . . . . . . Average Corruption . | . . . . . . . Corruption Purged . | . . . . . . . Corruption Blocked . | . . . . . . . Overload Shots . | . . . . . . . Overflow Damage 375 | . . 144 145 32 54 . Projectiles . | . . . . . . . Explosions . | . . . . . . . Melee 375 | . . 144 145 32 54 . Knockbacks . | . . . . . . . Impact . | . . . . . . . Kinetic . | . . . . . . . Secondary . | . . . . . . . Self-Inflicted Damage 89 | . 59 30 . . . . Shots 3 | . 2 1 . . . . Rammed . | . . . . . . . Targets Rammed . | . . . . . . . Kicked . | . . . . . . . Crushed . | . . . . . . . Highest Temperature 183 | . 183 163 7 42 33 31 Average Temperature 37 | . 60 98 2 9 15 31 Received Heat Transfer 1346 | . 240 494 288 306 18 . Siege Activations . | . . . . . . . Robots Corrupted . | . . . . . . . Combat Hostiles . | . . . . . . . Parts Fried 8 | . 6 2 . . . . Impact Corruptions . | . . . . . . . Robots Melted . | . . . . . . . Combat Hostiles . | . . . . . . . Parts Melted 23 | . . 1 13 8 1 . Heat Transferred 11381 | . 500 581 6025 3700 450 125 Parts Sabotaged . | . . . . . . . Parts Stolen . | . . . . . . . Parts Stripped . | . . . . . . . Power Chain Reactions 8 | . 7 1 . . . . Alert | -11 -10 -10 -8 -8 -8 -8 ------- Run | Yrd Mat Sub Mat Sto Rec Scr Peak Influence 1065 | . 1065 . 671 1001 622 . Initial 311 | . . . 18 187 311 . Average 546 | . 607 . 315 746 518 . Maximum Alert Level 3 | . 3 . 2 3 2 . Low Security (%) 13 | 100 8 . 35 1 . . Level 1 21 | . 25 . 30 13 14 . Level 2 34 | . 22 . 34 20 85 . Level 3 30 | . 44 . . 63 . . Level 4 . | . . . . . . . Level 5 . | . . . . . . . High Security . | . . . . . . . Max Security . | . . . . . . . Squads Dispatched 20 | . 12 . 6 2 . . Investigation 17 | . 12 . 3 2 . . Extermination . | . . . . . . . Reinforcement 1 | . . . 1 . . . Assault 1 | . . . 1 . . . Garrison 1 | . . . 1 . . . Intercept . | . . . . . . . Searches Triggered . | . . . . . . . Construction Impeded . | . . . . . . . Haulers Reinforced . | . . . . . . . Active Scanning Responses . | . . . . . . . Cargo Convoy Interrupts . | . . . . . . . Stealth | -11 -10 -10 -8 -8 -8 -8 --------- Run | Yrd Mat Sub Mat Sto Rec Scr Distress Signals 4 | . 2 . 1 1 . . Communications Jammed . | . . . . . . . Distress Signals . | . . . . . . . Times Spotted 166 | . 49 30 50 30 3 4 Peak Tracking Total 7 | . 5 6 7 5 1 4 Tactical Retreats 9 | . 3 3 1 2 . . Traps | -11 -10 -10 -8 -8 -8 -8 ------- Run | Yrd Mat Sub Mat Sto Rec Scr Traps Triggered 5 | . 2 2 . 1 . . Indirectly . | . . . . . . . Trap Hack Attempts . | . . . . . . . Triggered . | . . . . . . . Disarmed . | . . . . . . . Reprogrammed . | . . . . . . . Reused . | . . . . . . . Traps Extracted . | . . . . . . . Installed . | . . . . . . . Triggered . | . . . . . . . Machines | -11 -10 -10 -8 -8 -8 -8 ---------- Run | Yrd Mat Sub Mat Sto Rec Scr Machines Disabled 8 | . 2 2 . 4 . . Max in Single Turn 1 | . 1 1 . 1 . . Garrison Access 2 | . . . 1 1 . . Machines Repaired . | . . . . . . . Machines Dismantled . | . . . . . . . Machines Sabotaged 3 | . 3 . . . . . Overloaded Fab Kills . | . . . . . . . Hacking | -11 -10 -10 -8 -8 -8 -8 --------- Run | Yrd Mat Sub Mat Sto Rec Scr Machines Accessed 54 | . 11 1 15 16 11 . Terminals 36 | . 8 . 11 13 4 . Fabricators . | . . . . . . . Repair Stations 1 | . 1 . . . . . Recycling Units 13 | . 2 . 2 2 7 . Scanalyzers 1 | . . . 1 . . . Garrison Access 2 | . . . 1 1 . . Total Hacks 145 | . 35 9 42 41 18 . Successful 111 | . 25 9 31 31 15 . Failed 34 | . 10 . 11 10 3 . Catastrophic 3 | . . . 2 1 . . Database Lockouts . | . . . . . . . Manual 82 | . 24 . 28 17 13 . Terminals 116 | . 32 . 35 38 11 . Fabricators . | . . . . . . . Repair Stations 1 | . 1 . . . . . Recycling Units 13 | . 2 . 2 2 7 . Scanalyzers 4 | . . . 4 . . . Garrison Access 2 | . . . 1 1 . . Terminal Hacks 59 | . 10 9 14 21 5 . Record 10 | . . 8 2 . . . Part Schematic 1 | . . . . 1 . . Robot Schematic 3 | . . . . 2 1 . Robot Analysis 8 | . 3 . 1 4 . . Prototype ID Bank 6 | . 1 . 2 2 1 . Open Door 5 | . . . . 5 . . Branch Access Points 2 | . . . 1 1 . . Emergency Access Points 1 | . . . . 1 . . Terminal Index 1 | . . . . . 1 . Recycling Unit Index 2 | . 1 . . . 1 . Alert Level 4 | . . . 2 1 1 . Unreport Threat 6 | . . . 5 1 . . Locate Traps 2 | . 1 . . 1 . . Maintenance Status 1 | . 1 . . . . . Hauler Manifests 2 | . 1 . 1 . . . Registered Components 2 | . 1 . . 1 . . Registered Prototypes 1 | . 1 . . . . . Zone Layout 1 | . . . . 1 . . Derelict Proto ID Bank 1 | . . 1 . . . . Fabricator Hacks . | . . . . . . . Repair Station Hacks . | . . . . . . . Recycling Unit Hacks . | . . . . . . . Scanalyzer 3 | . . . 3 . . . Insert Component 2 | . . . 2 . . . Analyze 1 | . . . 1 . . . Garrison Access Hacks 2 | . . . 1 1 . . Seal Access 2 | . . . 1 1 . . Unauthorized Hacks 47 | . 15 . 13 9 10 . Terminals 32 | . 12 . 10 7 3 . Botnet 27 | . 7 . 10 7 3 . Sabotage 5 | . 5 . . . . . Fabricators . | . . . . . . . Repair Stations 1 | . 1 . . . . . Patch 1 | . 1 . . . . . Recycling Units 13 | . 2 . 2 2 7 . Tunnel 13 | . 2 . 2 2 7 . Scanalyzers 1 | . . . 1 . . . Extract 1 | . . . 1 . . . Garrison Access . | . . . . . . . Data Cores Recovered 2 | . . . 1 1 . . Used 2 | . . . 1 1 . . Hacking Detections 26 | . 5 . 9 8 4 . Full Trace Events 4 | . 3 . . . 1 . Feedback Events . | . . . . . . . Feedback Blocked . | . . . . . . . Robot Schematics Acquired 3 | . . . . 2 1 . Robots Built . | . . . . . . . Authchips . | . . . . . . . Time . | . . . . . . . Total Robot Build Rating . | . . . . . . . Part Schematics Acquired 8 | . . . 7 1 . . Parts Built . | . . . . . . . Authchips . | . . . . . . . Time . | . . . . . . . Total Part Build Rating . | . . . . . . . Parts Repaired . | . . . . . . . Time . | . . . . . . . Parts Recycled . | . . . . . . . Recycled Matter . | . . . . . . . Retrieved Matter . | . . . . . . . Retrieved Components . | . . . . . . . Parts Scanalyzed 1 | . . . 1 . . . Part Schematics Acquired 1 | . . . 1 . . . Parts Damaged . | . . . . . . . Bothacking | -11 -10 -10 -8 -8 -8 -8 ------------ Run | Yrd Mat Sub Mat Sto Rec Scr Used RIF Installer . | . . . . . . . Robots Hacked . | . . . . . . . Non-combat . | . . . . . . . Combat . | . . . . . . . Robot Hacks Applied . | . . . . . . . Relay Couplers Released . | . . . . . . . Fabnet Peak Effective % . | . . . . . . . Robots Rewired . | . . . . . . . Allies Hacked . | . . . . . . . Hacks Repelled . | . . . . . . . Allies | -11 -10 -10 -8 -8 -8 -8 -------- Run | Yrd Mat Sub Mat Sto Rec Scr Total Allies 10 | . . . . 10 . . Largest Group 10 | . . . . 10 10 10 Highest-Rated Group 173 | . . . . 173 173 173 Highest-Rated Ally 29 | . . . . 29 29 29 Total Orders 15 | . . . . 2 3 10 STAY 13 | . . . . 1 2 10 FOLLOW 2 | . . . . 1 1 . Ally Attacks 16 | . . . . . 6 10 Total Damage 252 | . . . . . 97 155 Kills 1 | . . . . . . 1 Allies Corrupted . | . . . . . . . Allies Melted . | . . . . . . . Intel | -11 -10 -10 -8 -8 -8 -8 ------- Run | Yrd Mat Sub Mat Sto Rec Scr Robot Analysis Total 8 | . 3 . 1 4 . . Derelict Logs Recovered 4 | . . 2 . . . 2 Drone Launches . | . . . . . . . Drone Recoveries . | . . . . . . . Exploration | -11 -10 -10 -8 -8 -8 -8 ------------- Run | Yrd Mat Sub Mat Sto Rec Scr Turns Passed 5941 | 45 1159 1796 814 781 492 854 Spaces Moved 7498 | 46 1365 2285 1131 1108 820 743 Core 2 | 2 . . . . . . Treads . | . . . . . . . Legs . | . . . . . . . Wheels 190 | 44 146 . . . . . Hover 7306 | . 1219 2285 1131 1108 820 743 Flight . | . . . . . . . Fastest Speed 38 | 50 52 52 45 38 38 38 Average Speed 48 | 78 58 52 46 42 38 38 Slowest Speed 116 | 80 116 52 112 45 38 38 Overloaded Moves . | . . . . . . . Propulsion Burnouts . | . . . . . . . Robots Hopped . | . . . . . . . Cave-ins Triggered . | . . . . . . . Exploration Rate (%) 77 | 4 98 97 94 96 98 53 Regions Visited 6 Branch Regions 4 Pre-discovered Areas 13 | . 2 . 2 2 7 . Known Exits Taken 3 | . . . 1 1 1 . Unknown Exits Taken 3 | 1 1 1 . . . . Scrap Searched 12 | . . 9 . . . 3 Spaces Dug 19 | . . 17 1 1 . . Terrain Destroyed 32 | . 10 20 1 1 . . Melee 7 | . . 5 1 1 . . Projectile 12 | . . 12 . . . . AOE 13 | . 10 3 . . . . Terrain Rammed . | . . . . . . . Walls Destroyed . | . . . . . . . Machines Disabled . | . . . . . . . Actions | -11 -10 -10 -8 -8 -8 -8 --------- Run | Yrd Mat Sub Mat Sto Rec Scr Total 9282 | 51 1573 2661 1333 1359 992 1313 Wait 1218 | . 79 143 97 170 163 566 Move 7492 | 45 1364 2284 1130 1107 819 743 Hop . | . . . . . . . Pick Up 12 | . 2 9 . . . 1 Fast Attach 28 | 6 5 3 6 8 . . Attach . | . . . . . . . Detach . | . . . . . . . Swap 31 | . 11 17 2 . . 1 Drop 23 | . 2 10 5 5 . 1 Fire 137 | . 76 60 . . . 1 Melee 202 | . . 105 55 37 5 . Ram . | . . . . . . . Kick . | . . . . . . . Crush . | . . . . . . . Escape Stasis . | . . . . . . . Rewire . | . . . . . . . Trap . | . . . . . . . Miscellaneous 139 | . 34 30 38 32 5 . Route ------- -11/Scrapyard -10/Materials (discovered 5 exits: [*Mat x3] / [*Min] / *Sub) -10/Subcaves (discovered 3 exits: *Mat x2 / *Rec) -8/Materials (discovered 5 exits: [*Fac x3] / *Sto x2) -8/Storage (discovered 2 exits: [*Fac] / *Rec) -8/Recycling (discovered 2 exits: [*Fac] / *Scr) -8/Scraptown (discovered 1 exit: [*Fac]) History --------- Turn | Location | Event 2 | -11/Scrapyard | Met Revision 17 4 | -11/Scrapyard | Upgraded with Power slot (x1) 4 | -11/Scrapyard | Upgraded with Propulsion slot (x1) 4 | -11/Scrapyard | Upgraded with Utility slot (x1) 4 | -11/Scrapyard | Upgraded with Weapon slot (x1) 7 | -11/Scrapyard | Discovered new exit (range 16) 46 | -11/Scrapyard | Entered Materials 311 | -10/Materials | Build established: Mutant 348 | -10/Materials | Reached level 2 367 | -10/Materials | Discovered new exit (range 5) 409 | -10/Materials | Discovered new exit (range 10) 529 | -10/Materials | Discovered new exit (range 9) 614 | -10/Materials | Discovered new exit (range 8) 664 | -10/Materials | Reached level 3 739 | -10/Materials | Reached level 4 769 | -10/Materials | Destroyed 11 combat bots 945 | -10/Materials | Upgraded with Utility slot (x2) 946 | -10/Materials | Upgraded with Propulsion slot (x1) 1107 | -10/Materials | Discovered new exit (range 13) 1152 | -10/Materials | Reached level 5 1205 | -10/Materials | Entered Subcaves 1252 | -10/Subcaves | Build established: Scavenger-Mutant 1295 | -10/Subcaves | Discovered new exit (range 9) 1406 | -10/Subcaves | Shifting Twisted Machinery released Sub. Monowheel 1429 | -10/Subcaves | Learned Materials garrison access intel 1472 | -10/Subcaves | A swath of the cavern ceiling suddenly collapsed 1573 | -10/Subcaves | Shifting Twisted Machinery released Mak. Leg 1589 | -10/Subcaves | Discovered new exit (range 6) 1656 | -10/Subcaves | Visited 4L-MR0's lab 1663 | -10/Subcaves | Found Prototype Power Core 1663 | -10/Subcaves | Identified Meta Core 1664 | -10/Subcaves | Attached Meta Core, gained temporary slots: Propulsion, Utility, Weapon 1722 | -10/Subcaves | Ambushed by Subdwellers from Twisted Machinery 1737 | -10/Subcaves | Core integrity fell below 50% 1765 | -10/Subcaves | Curiously followed by a Cobbler waking with a query about "LVR3C" 1911 | -10/Subcaves | Shifting Twisted Machinery released Mak. System Shield 1973 | -10/Subcaves | Shifting Twisted Machinery released Slug Cannon 1974 | -10/Subcaves | Shifting Twisted Machinery released Mak. Spear 2118 | -10/Subcaves | Shifting Twisted Machinery released Mak. Hacking Suite 2265 | -10/Subcaves | Disturbed a concealed Subdweller 2355 | -10/Subcaves | A swath of the cavern ceiling suddenly collapsed 2403 | -10/Subcaves | Visited Clippyterm 2527 | -10/Subcaves | Learned Materials stockpile data 2532 | -10/Subcaves | Disturbed a concealed Subdweller 2549 | -10/Subcaves | Upgraded with Utility slot (x1) 2581 | -10/Subcaves | Reached level 6 2952 | -10/Subcaves | Discovered new exit (range 13) 3001 | -10/Subcaves | Entered Materials 3003 | -8/Materials | Loaded intel: 1 garrison access location 3003 | -8/Materials | Reached level 7 3120 | -8/Materials | Reached level 8 3311 | -8/Materials | Discovered new exit (range 5) 3337 | -8/Materials | Reached level 9 3415 | -8/Materials | Discovered new exit (range 4) 3482 | -8/Materials | Destroyed 10 combat bots 3499 | -8/Materials | Garrison activated, responded to threat 3500 | -8/Materials | Build established: Hacker-Mutant 3500 | -8/Materials | Reached level 10 3542 | -8/Materials | Upgraded with Utility slot (x1) 3583 | -8/Materials | Identified exit to Storage 3585 | -8/Materials | Discovered new exit (range 10) 3708 | -8/Materials | Discovered new exit (range 15) 3801 | -8/Materials | First assault squad dispatched 3806 | -8/Materials | Reached level 11 3815 | -8/Materials | Entered Storage 3848 | -8/Storage | Build established: Hacker-Scout 3903 | -8/Storage | Identified exit to Recycling 3973 | -8/Storage | Reached level 12 4166 | -8/Storage | Discovered new exit (range 5) 4229 | -8/Storage | Used back door to open Recycling access 4423 | -8/Storage | Upgraded with Propulsion slot (x1) 4456 | -8/Storage | Assisted by bots powering up and referring to "LRC-V3" 4467 | -8/Storage | Reached level 13 4596 | -8/Storage | Entered Recycling 4596 | -8/Recycling | Accompanied by 10 allies 4597 | -8/Recycling | Met a Zionite searching for Scraptown 4748 | -8/Recycling | Build established: Commander-Scout 4783 | -8/Recycling | Discovered new exit (range 8) 4840 | -8/Recycling | Scanned before Scraplab entrance 5041 | -8/Recycling | Entered Scraplab 5044 | -8/Recycling | Discovered new exit (range 3) 5044 | -8/Recycling | Identified exit to Scraptown 5088 | -8/Recycling | Entered Scraptown 5088 | -8/Scraptown | Accompanied by 10 allies 5118 | -8/Scraptown | Scanned Subdweller tech in exchange for log data 5119 | -8/Scraptown | Learned Research security intel 5129 | -8/Scraptown | Visited The Evicted 5135 | -8/Scraptown | Visited Spacefarers 5138 | -8/Scraptown | Visited Cyclists 5142 | -8/Scraptown | Visited CR-KLE's Repair Center 5146 | -8/Scraptown | Visited Comm Corps 5341 | -8/Scraptown | Visited Science Testing Area 5442 | -8/Scraptown | Visited Junk Repository 5607 | -8/Scraptown | Discovered new exit (range 11) 5941 | -8/Scraptown | Attacked by Scraptown defenders 5941 | -8/Scraptown | Allies destroyed Triborg 5942 | -8/Scraptown | Self-destructed Last Messages --------------- 05552_ Found Great Maul. 05552_ Found Hvy. EM Pulse Gun. 05552_ Found 45 Matter. 3L-A2C(j): I know I don't look like much, but believe it or not I survived the Hall of Judgement. It left its mark. Taught me valuable lessons, too. Sorry 6R-33N, you were a good friend I even liked your plants. 05576_ Dropped Sub. Laser. 05580_ Acquired Plasma Cannon. 05607_ EXIT=FOUND 05614_ Searching scrap... 05614_ Found Recoil Stabilizer. 05614_ Found Cesium-ion Thruster. 05614_ Found 52 Matter. 05941_ ANNOUNCEMENT: Intruder alert! Defend Scraptown! 05941_ Triborg critical meltdown. Map ----- +----------------------------------------------------+ | #### ### ##############?#???????? | | ########## ########### ###############? ????????? | | #########"""??????????? | | #########" ???????????? | | #########" ? ????????? | | #########" ?????????? | | #########" ????????? | | ################# #########" ????????? | | ################# #####"""" ?????????? | | ########?######## #####"""" ???????? | | # """""##"" ## #####""""? ???????? | | # " " ## #####"""" ???????? | | #?? ?## " " ## #####"""" ???????? | | # """ ## " ## ###"#"""" ? ???????? | | # """ ## " " ## ""#"#"""" "??????? | | # """ # " " ## j""""#"""" ???????? | | # """ # "" ## ""#######" ???????? | | # """ # " " ## #########" ???????? | | # # " "" ## #########" ???????? | | " " # " " ## """" ???????? | | # """""### ## """" ????????? | | ################# """" ????????? | | #?############### gg g """" ????????? | | ################# g% g """" ???????? | | g% g """" ???????? | | ggg@ """" ???????? | | """" ???????? | | j """" ????????? | | r """" ????????? | | x #""""#" ????????? | | r #""""#" ???????? | | #""""#"""""????????? | | ##### ####### ########## #### ######????????? | | #### # #### ###" ???????? | | ####" "# #### ###"?" ???????? | | ####" "###### "# #### ###""""???????? | | """""####" # """#" "# #### ###""" ???????? | | " """""#?##" "# #" "# #### ###""? ???????? | | " """""####" "#"" # "# #### ###""" ??????? | | " """""####" "###/## "# #### ###""""???????? | | "?"?"""#??#" "# #### ###""""???????? | | ?""""?"####""""""""""""# #### ###"""????????? | | "?""""?################# ###########""""???????? | | ?#####?###?############# ###############???????? | | ##??##?################# ################??????? | | ?############""""""""""" ###############???????? | | #?###########""""" """"" ###### ???????? | | ####?########"""" " "" ###### """"""" ???????? | | #####?# ###### """"""" ??????? | | ####### #####"" "" "" " ###### """"""" ???????? | +----------------------------------------------------+ Best States ------------- Heat Dissipation 83 Energy Generation 26 Energy Capacity 400 Matter Stores 300 Matter Capacity 300 Sight Range 16 Robot Scan Range 10 Terrain Scan Range 16 Terrain Scan Density 410 Additional Mass Support 6 Armor Coverage 200 Resistance: KI 20 Resistance: TH 20 Resistance: EX 20 Resistance: EM 20 Resistance: I 20 Resistance: S 20 Resistance: P 20 Evasion (%) 57 Targeting Accuracy 12 Offensive Hacking 20 Defensive Hacking 5 Item Schematics ----------------- Sub. Monowheel | -8/Materials | Scanalyzed Imp. Heat Sink | -8/Materials | Extracted Lrg. Battery | -8/Materials | Extracted Med. Laser | -8/Materials | Extracted Hvy. Particle Gun | -8/Materials | Extracted Assault Cannon | -8/Materials | Extracted System Shield | -8/Materials | Extracted Proton Cannon | -8/Storage | Hacked Robot Schematics ------------------ O-24 Administrator | -8/Storage | Hacked A-02 Transporter | -8/Storage | Hacked W-25 Informer | -8/Recycling | Hacked Fabricated ------------ Nothing Alien Tech Used ----------------- None Achievements -------------- None Challenges ------------ None RPGLIKE | -11 -10 -10 -8 -8 -8 -8 --------- Run | Yrd Mat Sub Mat Sto Rec Scr Levels Raised 12 | . 4 1 5 2 . . XP Earned 23152 | 4000 6198 1534 7405 2986 859 170 XP Spent 15900 | 2000 6160 1400 5240 1100 . . Upgrades 40 | 4 17 1 17 1 . . Power Slot 1 | 1 . . . . . . Propulsion Slot 3 | 1 1 . . 1 . . Utility Slot 5 | 1 2 1 1 . . . Weapon Slot 1 | 1 . . . . . . Heat Dissipation 8 | . 8 . . . . . Mass Support 1 | . 1 . . . . . Inventory Capacity 3 | . 3 . . . . . Sensor Range 5 | . . . 5 . . . Terrain Scan Density 4 | . . . 4 . . . Ranged Accuracy 4 | . 2 . 2 . . . Melee Accuracy 2 | . . . 2 . . . Hack Attack % 2 | . . . 2 . . . Hack Defense % 1 | . . . 1 . . . Protomatter Created 1775 | . 513 307 533 333 89 . Integrity Restored 2544 | . 565 641 646 637 55 . Core 1698 | . 445 473 306 458 16 . Parts 846 | . 120 168 340 179 39 . Protomatter Decayed 765 | . 283 39 261 113 69 . Game ------ Seed CargoGhostSegregator Manual? 0 Play Time 01:19:31 Cumulative 273.5 hours Start 2025.03.20 @ 18:29:20 End 2025.03.20 @ 20:33:21 Sessions 1 Manual Loads 0 Difficulty Adventurer Special Mode Winter2019/RPGLIKE Game No. 111 Rogue 0 Adventurer 111 Explorer 0 Win Type - Total 11 Types 2/2/3/2/1/0/0/0/1 Lore% 81 Gallery% 76 Achievement% 78 Wizard Run 0 Options --------- Layout 2 ASCII 0 Keyboard 0 Movement Numpad Keybinds 0 Fullscreen 2 Font 24/Smallcaps Map View 50x44 Zoom Use 0% Tactical HUD 1 Map Filters NONE Filters NONE Steam 1 RUN: 40134488-be96-423d-8c4a-34a7d701e4fe